bitfinex/quotes_ETHUSD_20241119
["timestamp","ask_amount","ask_price","bid_price","bid_amount"]
[1732000704047,0.83559845,3115.0,3114.5,0.8164]
[1732000704277,4.02946,3115.8,3114.8,3.21047]
[1732000704278,1.13165433,3114.9,3114.8,3.21047]
[1732000704583,1.0727279,3114.9,3114.8,3.21047]
[1732000706091,0.77662401,3114.9,3114.8,6.852585]
[1732000706286,0.77662401,3114.9,3114.8,7.659585]
[1732000706510,0.773,3116.2,3115.0,0.01]
[1732000706647,0.29627086,3116.1,3115.9,3.20926]
[1732000706846,0.773,3116.6,3115.9,3.20926]
[1732000706847,0.29627086,3116.0,3115.9,3.20926]
[1732000707988,0.29627086,3116.0,3115.7,3.20946]
[1732000708188,0.29627086,3115.9,3115.7,3.20946]
[1732000708489,0.29627086,3115.8,3115.7,3.20946]
[1732000708989,0.29627086,3115.8,3115.7,3.97866]
[1732000711486,0.29627086,3115.8,3115.7,4.76168083]
[1732000711696,3.7786,3117.1,3115.8,3.20944]
[1732000711902,0.29613687,3117.0,3116.3,3.20883]
[1732000712082,0.29613687,3116.9,3116.3,6.41766]
[1732000712395,0.29613687,3116.8,3116.4,3.20882]
[1732000712722,0.29613687,3116.7,3116.6,3.20862]
[1732000714266,0.29613687,3116.7,3116.2,3.20895]
[1732000714461,0.29613687,3116.6,3115.7,0.7692]
[1732000714691,3.0,3116.9,3116.1,3.20912]
[1732000714692,0.29613687,3116.5,3116.1,3.20912]
[1732000714988,0.29613687,3116.4,3116.1,3.20912]
[1732000715192,0.29613687,3116.3,3116.1,3.20912]
[1732000715408,3.0,3116.9,3116.2,3.20903]
[1732000715608,0.29566242,3116.8,3116.5,3.20871]
[1732000715904,0.29566242,3116.7,3116.5,3.20871]
[1732000716088,0.29566242,3116.6,3116.5,3.20871]
[1732000717427,0.7786,3117.1,3116.5,3.20871]
[1732000717428,0.29566242,3117.0,3116.5,3.20871]
[1732000717567,0.29556496,3116.9,3116.6,3.20861]
[1732000717764,0.29556496,3116.8,3116.6,3.20861]
[1732000717962,0.29556496,3116.7,3116.6,3.20861]
[1732000718212,0.29556496,3116.7,3115.8,0.01]
[1732000718379,0.37837221,3117.0,3116.4,3.20874]
[1732000718582,0.53200454,3116.9,3116.2,3.20902]
[1732000718819,0.53200454,3116.8,3116.5,3.20871]
[1732000719123,0.29555808,3116.7,3116.5,3.20871]
[1732000719322,1.15697221,3117.1,3116.3,3.20889]
[1732000719520,0.53220822,3117.0,3116.5,3.20867]
[1732000719805,0.53220822,3116.9,3116.5,3.20867]
[1732000719965,0.53220822,3116.8,3116.3,3.20889]
[1732000720171,0.29567123,3116.7,3116.5,3.20865]
[1732000720400,0.7786,3117.1,3116.6,3.20862]
[1732000720602,0.29578836,3117.0,3116.5,0.32]
[1732000720803,0.29578592,3116.9,3116.5,3.52872]
[1732000721014,3.98672,3117.1,3116.5,3.52872]
[1732000721015,0.53241497,3116.8,3116.5,3.52872]
[1732000721168,0.29578592,3116.7,3116.6,3.20861]
[1732000721371,0.53260277,3116.7,3116.6,3.20861]
[1732000721882,0.29578592,3116.7,3116.6,3.20861]
[1732000722207,0.53258505,3116.7,3116.6,3.20861]
[1732000724463,0.53258505,3116.7,3116.3,0.32]
[1732000724639,0.53258505,3116.6,3116.4,3.20882]
[1732000724838,0.53258505,3116.5,3116.4,3.20882]
[1732000726451,0.53258505,3116.5,3116.3,0.32]
[1732000726611,0.53258505,3116.4,3116.3,0.32]
[1732000727560,0.53258505,3116.4,3116.3,3.52893]
[1732000728036,0.53258505,3116.4,3116.2,3.20901]
[1732000728221,0.7711,3116.7,3116.1,0.32]
[1732000728222,0.91119153,3116.3,3116.1,0.32]
[1732000728425,0.53258505,3116.2,3116.1,0.32]
[1732000728957,0.53258505,3116.2,3116.1,3.52913]
[1732000734438,0.53416668,3116.2,3116.1,3.52913]
[1732000734763,0.8077,3117.0,3116.6,3.20854]
[1732000734945,0.29797223,3116.9,3116.6,3.20854]
[1732000735141,0.67937759,3116.8,3116.6,3.20854]
[1732000735341,0.67937759,3116.7,3116.6,3.20854]
[1732000735554,0.91775594,3116.7,3116.6,3.20854]
[1732000737921,0.91898557,3116.7,3116.6,3.20854]
[1732000738309,0.91898557,3116.7,3116.4,3.20877]
[1732000738482,0.8077,3117.0,3116.3,3.52886]
[1732000738483,0.91898557,3116.6,3116.3,3.52886]
[1732000738681,0.91898557,3116.5,3116.3,3.52886]
[1732000738943,0.91898557,3116.4,3116.3,3.52886]
[1732000740827,0.91906682,3116.4,3116.3,3.52886]
[1732000741629,0.91906682,3116.4,3116.3,4.28826]
[1732000743739,0.91928392,3116.4,3116.3,4.28826]
[1732000744113,0.91929411,3116.4,3116.3,4.28826]
[1732000745104,0.6208218,3116.4,3116.3,4.28826]
[1732000745802,0.6208218,3116.4,3115.7,0.32]
[1732000746006,0.6208218,3116.3,3115.7,3.52947]
[1732000746534,0.6208218,3116.2,3116.1,3.20913]
[1732000747504,0.4708218,3116.2,3116.1,3.20913]
[1732000749533,0.4708218,3116.2,3116.0,3.2092]
[1732000749717,0.23877761,3116.1,3116.0,3.20924]
[1732000750528,0.8224,3116.9,3116.3,3.20889]
[1732000751037,0.23864691,3116.8,3116.3,3.20889]
[1732000751220,0.23864691,3116.7,3116.3,3.20889]
[1732000751421,0.23864691,3116.6,3116.3,3.20889]
[1732000751595,0.23864691,3116.5,3116.4,3.20881]
[1732000754039,0.8224,3116.9,3116.6,3.20862]
[1732000754334,0.23863574,3116.8,3116.6,3.20862]
[1732000754504,0.8224,3116.9,3116.6,3.20862]
[1732000754706,0.238646,3116.8,3116.6,3.20862]
[1732000754908,0.238646,3116.7,3116.5,3.20868]
[1732000755090,0.8224,3116.9,3116.1,0.32]
[1732000755091,0.238646,3116.6,3116.1,0.32]
[1732000755293,0.238646,3116.5,3116.3,3.20883]
[1732000755537,0.238646,3116.4,3116.1,3.52911]
[1732000755740,0.238646,3116.3,3115.8,4.30778]
[1732000756047,0.238646,3116.2,3116.0,0.32]
[1732000756197,0.238646,3116.1,3115.9,3.20934]
[1732000756398,0.238646,3116.0,3115.8,3.20944]
[1732000756629,0.238646,3115.9,3115.8,3.20944]
[1732000756944,0.238646,3115.9,3115.8,3.52944]
[1732000757427,0.238646,3115.9,3115.7,0.32]
[1732000757611,0.238646,3115.9,3115.5,3.8028]
[1732000757612,0.7913,3115.8,3114.9,3.21033]
[1732000757943,0.7913,3115.8,3115.2,0.32]
[1732000757944,0.62031809,3115.7,3115.2,0.32]
[1732000758098,0.62031809,3115.6,3115.2,0.32]
[1732000758299,4.00075,3115.8,3115.2,0.32]
[1732000758300,0.238646,3115.5,3115.2,3.53003]
[1732000758552,4.00075,3115.8,3115.1,3.2101]
[1732000758553,0.238646,3115.4,3115.3,3.52994]
[1732000758700,3.2091,3116.2,3115.6,3.20965]
[1732000758701,0.3814105,3115.7,3115.6,3.20965]
[1732000759066,0.23838536,3115.7,3115.5,3.20971]
[1732000759205,0.23838536,3115.6,3115.5,3.20971]
[1732000759846,0.3814105,3115.9,3115.5,3.20971]
[1732000759847,0.3814105,3116.1,3115.7,3.20947]
[1732000760145,0.61973886,3116.0,3115.8,3.20937]
[1732000760294,0.61973886,3116.0,3115.7,3.20947]
[1732000760295,0.7913,3116.5,3115.9,3.20934]
[1732000760500,0.61954724,3116.4,3115.5,3.20974]
[1732000760745,3.20914,3116.1,3115.5,3.20974]
[1732000760899,0.7913,3115.8,3115.4,0.32]
[1732000761099,0.23826462,3115.7,3115.4,0.32]
[1732000761356,0.23826462,3115.6,3115.5,3.20975]
[1732000761851,0.38122339,3116.0,3115.6,3.20961]
[1732000762150,0.23819906,3115.9,3115.6,3.20961]
[1732000762351,0.23819906,3115.8,3115.6,3.20961]
[1732000762504,0.23819906,3115.7,3115.6,3.20961]
[1732000762703,0.7913,3116.1,3115.6,3.20961]
[1732000762704,0.38122339,3116.1,3115.6,3.20961]
[1732000763039,3.20876,3116.5,3115.9,3.20934]
[1732000763040,0.23816727,3116.0,3115.9,3.20934]
[1732000763397,3.58976339,3116.7,3116.1,3.20904]
[1732000763647,3.20875,3116.5,3115.8,0.32]
[1732000763806,3.209,3116.3,3115.8,0.32]
[1732000764004,0.7991,3116.1,3115.8,0.32]
[1732000764214,4.00824,3116.1,3115.8,0.32]
[1732000764483,0.23816998,3116.0,3115.5,3.52974]
[1732000764761,0.23816998,3115.9,3115.5,3.52974]
[1732000765062,0.7991,3116.1,3115.7,3.52953]
[1732000765244,0.23815871,3116.0,3115.7,0.32]
[1732000765442,0.7991,3116.1,3115.7,0.32]
[1732000765443,0.23815871,3115.9,3115.7,0.32]
[1732000765646,0.7991,3116.1,3115.7,0.32]
[1732000765819,0.23816421,3116.0,3115.7,0.32]
[1732000766019,0.23816421,3115.9,3115.6,0.32]
[1732000766215,0.23816421,3115.8,3115.6,0.32]
[1732000766421,4.0083,3116.1,3115.6,0.32]
[1732000766620,3.20934,3115.9,3115.1,0.32]
[1732000766822,3.20934,3115.9,3115.3,3.52995]
[1732000766823,0.61922471,3115.8,3115.3,3.52995]
[1732000767123,0.23816379,3115.7,3115.3,3.52995]
[1732000767325,0.38106092,3115.8,3115.3,0.32]
[1732000767326,0.23816379,3115.6,3115.3,0.32]
[1732000767629,0.23816379,3115.5,3115.3,3.52996]
[1732000767901,0.38106092,3115.8,3115.3,3.52996]
[1732000768045,0.7991,3116.1,3115.3,3.52996]
[1732000768046,0.2380796,3115.7,3115.3,3.52996]
[1732000768228,0.2380796,3115.6,3115.3,3.52996]
[1732000768431,0.38106092,3116.0,3115.5,3.20975]
[1732000768669,3.20952,3115.8,3115.3,0.32]
[1732000768822,0.23806736,3115.7,3115.3,0.32]
[1732000769022,0.23806736,3115.6,3115.3,0.32]
[1732000769225,3.20952,3115.8,3115.3,0.32]
[1732000769422,0.23807927,3115.7,3115.3,3.52994]
[1732000769653,0.23807927,3115.6,3115.4,3.20977]
[1732000769853,3.59030092,3116.0,3114.9,0.7877]
[1732000769854,0.38106092,3116.0,3115.5,3.20975]
[1732000770122,0.2380825,3115.9,3115.5,3.20975]
[1732000770358,0.7991,3116.1,3115.5,3.20975]
[1732000770359,0.2380825,3115.8,3115.5,3.20975]
[1732000770556,0.2380825,3115.8,3115.3,3.52994]
[1732000770557,0.2380825,3115.7,3115.3,3.52994]
[1732000770742,3.20937,3115.9,3115.3,3.52994]
[1732000770743,0.2380825,3115.6,3115.3,3.52994]
[1732000771038,0.38106092,3116.0,3115.3,3.52994]
[1732000771245,0.61903823,3115.9,3115.3,3.52994]
[1732000771530,0.23809163,3115.8,3115.2,0.32]
[1732000771739,0.23809163,3115.7,3115.5,3.20969]
[1732000771938,0.3809466,3116.0,3115.5,3.20969]
[1732000772253,0.23811011,3115.9,3115.5,3.20969]
[1732000772440,0.23811011,3115.8,3115.5,3.20969]
[1732000772641,0.23811011,3115.7,3115.3,3.52989]
[1732000772948,0.3809466,3116.0,3115.5,3.20974]
[1732000773276,0.23812324,3115.9,3115.5,3.20974]
[1732000773475,0.23812324,3115.8,3115.6,3.20962]
[1732000773654,0.23812324,3115.7,3115.6,3.20962]
[1732000774051,0.23812324,3115.7,3115.5,3.20974]
[1732000774251,0.23815968,3115.6,3115.5,3.20974]
[1732000774457,0.23815968,3115.6,3115.3,3.52993]
[1732000774800,4.00824,3116.1,3115.3,3.52993]
[1732000774801,3.59042135,3115.9,3115.3,3.52993]
[1732000774940,0.23816448,3115.5,3115.3,3.52993]
[1732000775250,0.38107135,3115.8,3115.3,3.52993]
[1732000775438,0.38107135,3115.8,3115.2,0.32]
[1732000775439,0.23818452,3115.7,3115.2,0.32]
[1732000775639,0.23818452,3115.6,3115.2,3.53]
[1732000775861,0.23818452,3115.5,3115.2,0.32]
[1732000776035,0.23818452,3115.4,3115.2,0.32]
[1732000776239,3.20986,3115.4,3114.7,0.32]
[1732000776435,3.21013,3115.2,3114.6,0.32]
[1732000776684,0.23813229,3115.1,3114.6,3.53065]
[1732000776890,3.21037,3114.9,3114.6,0.32]
[1732000777181,0.23813229,3114.8,3114.6,0.32]
[1732000777400,0.23813229,3114.7,3114.6,0.32]
[1732000777541,0.23813229,3114.7,3114.4,0.32]
[1732000777741,3.96878,3115.0,3114.4,0.32]
[1732000778051,0.23794883,3114.9,3114.4,3.53088]
[1732000778558,0.23794883,3114.8,3114.4,3.53088]
[1732000778883,3.96878,3115.0,3114.4,3.53088]
[1732000779037,3.96878,3115.0,3114.2,3.21109]
[1732000779038,0.23785725,3114.9,3114.3,3.53098]
[1732000779380,0.23785725,3114.8,3114.4,3.53085]
[1732000779579,0.7585,3115.0,3114.5,3.21077]
[1732000779793,0.237778,3114.9,3114.8,3.21047]
[1732000779936,0.8014,3115.3,3114.7,3.21048]
[1732000779937,0.38046086,3115.3,3114.7,3.21048]
[1732000780140,0.38046086,3115.5,3114.9,3.21028]
[1732000780381,0.2377331,3115.4,3114.9,3.21028]
[1732000780585,0.2377331,3115.3,3114.9,3.21028]
[1732000780768,0.38046086,3115.5,3115.1,3.21015]
[1732000780968,0.23768451,3115.4,3115.1,3.21015]
[1732000781155,0.23768451,3115.6,3115.3,3.20996]
[1732000781356,0.38046086,3115.7,3115.3,3.20996]
[1732000781357,0.23769906,3115.5,3115.3,3.52996]
[1732000781778,1.16123572,3115.9,3115.3,3.52996]
[1732000781969,0.23771371,3115.8,3115.3,3.52996]
[1732000782166,0.23771371,3115.8,3115.3,0.32]
[1732000782167,3.44717371,3115.8,3115.3,0.32]
[1732000782366,0.23771371,3115.7,3115.3,0.32]
[1732000782773,0.23771371,3115.6,3115.3,0.32]
[1732000782973,0.23771371,3115.5,3115.3,0.32]
[1732000783179,0.38033572,3115.8,3115.2,0.32]
[1732000783381,3.20967,3115.6,3115.2,0.32]
[1732000783702,0.2377861,3115.5,3115.2,0.32]
[1732000783908,0.2377861,3115.4,3115.2,0.32]
[1732000784061,3.58989572,3115.7,3115.2,0.32]
[1732000784262,0.23777497,3115.6,3115.1,0.32]
[1732000784577,0.23777497,3115.6,3114.6,0.32]
[1732000784578,0.23777497,3115.5,3114.6,0.32]
[1732000784777,1.04837497,3115.4,3114.6,0.32]
[1732000784978,4.02052,3115.4,3114.6,3.32]
[1732000785175,0.23781969,3115.3,3114.8,3.21047]
[1732000785385,0.23781969,3115.2,3114.8,3.21047]
[1732000785704,0.23781969,3115.1,3114.8,3.21047]
[1732000785859,0.3805115,3115.3,3114.8,3.21047]
[1732000786066,0.23790511,3115.2,3114.9,3.2103]
[1732000786309,0.23790511,3115.1,3114.8,3.21047]
[1732000786476,4.4010115,3115.4,3114.8,3.21047]
[1732000786661,0.61842508,3115.3,3114.8,3.21047]
[1732000786861,3.21058,3114.8,3114.1,0.32]
[1732000787100,3.2107,3114.6,3114.1,0.32]
[1732000787271,0.3805115,3114.8,3114.1,0.32]
[1732000787474,0.23782483,3114.7,3114.3,3.21097]
[1732000787702,3.5908515,3115.0,3114.3,3.21097]
[1732000787956,0.23782851,3114.9,3114.4,3.21087]
[1732000788065,0.23782851,3114.8,3114.4,3.21087]
[1732000788263,3.21038,3114.9,3114.1,3.53116]
[1732000788463,0.23777788,3114.8,3114.3,3.21096]
[1732000788719,0.23777788,3114.8,3114.4,3.21089]
[1732000789008,0.756,3115.1,3114.4,3.21087]
[1732000789009,4.34671428,3115.1,3114.4,3.21087]
[1732000789162,0.23778281,3115.0,3114.5,3.21078]
[1732000789363,0.23778281,3114.9,3114.5,3.21078]
[1732000789573,0.23778281,3114.8,3114.5,3.21078]
[1732000789904,0.38040468,3115.0,3114.5,3.21078]
[1732000790114,0.23776273,3114.9,3114.5,3.21078]
[1732000790315,0.23776273,3114.8,3114.3,3.21092]
[1732000790513,3.21027,3115.0,3114.4,3.21088]
[1732000790720,0.23773547,3114.9,3114.2,0.32]
[1732000790873,3.2108,3114.5,3113.9,3.21139]
[1732000791205,0.23771342,3114.4,3113.9,3.21139]
[1732000791506,0.38033821,3114.6,3113.9,3.21139]
[1732000791707,3.21116,3114.2,3113.8,2.79]
[1732000791920,0.2376206,3114.1,3113.8,2.79]
[1732000792067,0.2376206,3114.0,3113.8,2.79]
[1732000792421,0.7891,3114.2,3113.8,2.79]
[1732000792708,0.23745057,3114.1,3113.8,2.79]
[1732000793031,4.37979364,3114.6,3113.9,3.21133]
[1732000793332,3.21106,3114.3,3113.8,2.79]
[1732000793622,3.54534965,3114.5,3113.9,3.21138]
[1732000793829,0.23741209,3114.4,3113.9,3.21138]
[1732000794261,0.23741209,3114.4,3113.8,2.79]
[1732000794400,0.7674,3114.2,3113.8,2.79]
[1732000794742,0.01,3112.4,3112.0,1.28678682]
[1732000795028,3.22347,3111.9,3111.8,5.64996179]
[1732000795193,4.31702504,3111.9,3111.8,5.64996179]
[1732000795398,3.76347,3111.9,3111.8,5.0]
[1732000795629,0.23640933,3111.9,3111.8,5.0]
[1732000796231,6.99987933,3111.9,3111.8,5.0]
[1732000796534,7.43062467,3111.9,3111.8,5.0]
[1732000796686,7.43062467,3111.9,3111.8,4.55408997]
[1732000796687,8.33791524,3111.9,3111.8,4.55408997]
[1732000796882,8.70617018,3111.9,3111.8,4.55408997]
[1732000797212,16.15813427,3111.9,3111.8,1.34050997]
[1732000797394,3.78367,3111.7,3111.6,0.83236325]
[1732000797593,3.23388,3111.5,3111.4,5.22537325]
[1732000797922,7.39854427,3111.5,3111.4,5.22537325]
[1732000798163,7.71375672,3111.5,3111.4,5.22537325]
[1732000798369,7.38854427,3111.5,3111.4,5.22537325]
[1732000798655,8.29663095,3111.5,3111.4,5.22537325]
[1732000798816,7.69219607,3111.5,3111.4,5.22537325]
[1732000799212,7.98544136,3111.5,3111.4,5.22537325]
[1732000799431,7.67219607,3111.5,3111.4,5.22537325]
[1732000799714,7.68219607,3111.5,3111.4,5.22537325]
[1732000800361,7.67219607,3111.5,3111.4,5.22537325]
[1732000800520,7.68219607,3111.5,3111.4,5.22537325]
[1732000801168,3.76429,3111.1,3111.0,10.6649491]
[1732000801459,8.02675096,3111.1,3111.0,10.6649491]
[1732000801667,8.87099448,3111.1,3111.0,10.6649491]
[1732000801814,9.1055204,3111.1,3111.0,10.6649491]
[1732000802015,12.1055204,3111.1,3111.0,10.6649491]
[1732000802616,11.5555204,3111.1,3111.0,10.6649491]
[1732000803268,1.53262158,3111.1,3111.0,12.23144401]
[1732000803473,0.60976739,3111.1,3111.0,12.23144401]
[1732000803813,0.23452592,3111.1,3111.0,12.23144401]
[1732000804371,0.37524147,3111.8,3111.2,3.21419]
[1732000804514,0.60904861,3111.7,3111.2,3.21419]
[1732000804716,0.60904861,3111.7,3111.1,1.3053244]
[1732000804717,0.23380714,3111.6,3111.5,4.03568]
[1732000804913,0.37524147,3111.9,3111.8,3.21357]
[1732000805130,0.68697292,3112.8,3112.0,3.21329]
[1732000805329,0.29236998,3112.7,3111.9,3.21337]
[1732000805732,0.29236998,3112.7,3111.5,0.8218]
[1732000805933,0.29236998,3112.7,3112.0,3.2133]
[1732000806118,0.60913663,3112.6,3112.1,3.21316]
[1732000806314,0.94009761,3112.9,3111.6,0.414571]
[1732000806315,0.60913663,3112.5,3112.2,3.21313]
[1732000806519,0.60913663,3112.4,3112.2,3.21313]
[1732000806821,0.23389516,3112.3,3112.0,3.21327]
[1732000807042,0.23389516,3112.2,3112.0,3.21327]
[1732000807227,0.23389516,3112.1,3112.0,3.21327]
[1732000807629,0.23389516,3112.1,3111.6,0.414571]
[1732000807630,0.23389516,3112.1,3111.6,3.21376]
[1732000807823,0.37452268,3112.3,3111.5,0.8218]
[1732000808040,0.60859936,3112.2,3111.7,3.21359]
[1732000808323,0.37452268,3112.1,3111.7,3.21359]
[1732000808570,0.60859936,3112.0,3111.7,3.21359]
[1732000808866,0.23407668,3111.9,3111.8,3.21357]
[1732000809437,0.23407668,3111.9,3111.6,0.403568]
[1732000809635,3.37351734,3112.5,3111.7,3.21364]
[1732000809863,3.37351734,3112.5,3111.1,0.01]
[1732000809864,3.21331,3112.1,3111.1,4.00608]
[1732000810023,0.90135596,3112.0,3111.0,10.6649491]
[1732000810223,0.90135596,3112.0,3111.2,3.21418]
[1732000810224,0.31210224,3111.8,3111.2,3.21418]
[1732000810430,1.0619933,3111.7,3111.2,3.21418]
[1732000810665,0.31210224,3111.8,3111.0,10.6649491]
[1732000810666,1.0619933,3111.6,3111.0,10.6649491]
[1732000810864,0.60870976,3111.5,3111.0,10.6649491]
[1732000811168,3.21389,3111.5,3111.0,10.6649491]
[1732000811374,3.01,3112.4,3111.0,10.6649491]
[1732000811375,3.98329904,3111.4,3111.0,10.6649491]
[1732000811525,4.27597203,3111.4,3111.0,10.6649491]
[1732000811724,1.06199203,3111.3,3111.0,10.6649491]
[1732000811929,0.60864477,3111.2,3111.0,10.6649491]
[1732000812162,0.60864477,3111.1,3111.0,10.6649491]
[1732000812471,0.76931904,3111.1,3111.0,10.6649491]
[1732000812670,3.82293477,3111.1,3111.0,10.6649491]
[1732000812967,4.27622781,3111.1,3111.0,10.6649491]
[1732000813177,4.74439577,3111.1,3111.0,10.6649491]
[1732000814326,1.53010577,3111.1,3111.0,10.6649491]
[1732000814634,1.53010577,3111.1,3111.0,11.4208491]
[1732000814635,0.99576629,3111.1,3111.0,11.4208491]
[1732000814833,0.7698723,3111.1,3111.0,11.4208491]
[1732000815375,0.7698723,3111.1,3111.0,14.6352491]
[1732000815878,1.0629847,3111.1,3111.0,14.6352491]
[1732000816046,0.7698723,3111.1,3111.0,14.6352491]
[1732000816251,1.06318561,3111.1,3111.0,14.6352491]
[1732000816774,1.06318561,3111.1,3111.0,10.6649491]
[1732000816974,1.53183222,3111.1,3111.0,10.6649491]
[1732000817180,1.06318561,3111.1,3111.0,10.6649491]
[1732000817331,1.53183222,3111.1,3111.0,10.6649491]
[1732000817763,1.37630105,3111.1,3111.0,13.8793491]
[1732000817941,3.21349,3111.9,3111.0,13.8793491]
[1732000817942,3.21377,3111.7,3111.0,13.8793491]
[1732000818273,0.31311687,3111.2,3111.0,10.6649491]
[1732000818474,0.29354539,3111.1,3111.0,10.6649491]
[1732000818660,1.53525189,3111.1,3111.0,10.6649491]
[1732000818969,1.53525189,3111.1,3111.0,13.8793491]
[1732000820613,1.53525189,3111.1,3111.0,10.6649491]
[1732000821086,1.53525189,3111.1,3111.0,10.49808054]
[1732000821289,4.74954189,3111.1,3111.0,10.49808054]
[1732000821572,4.98963759,3111.1,3111.0,9.1963655]
[1732000821776,1.0686822,3111.1,3111.0,10.61600205]
[1732000821936,0.77388531,3111.1,3111.0,14.65810205]
[1732000822131,1.06873179,3111.1,3111.0,13.2384655]
[1732000822339,1.06873179,3111.1,3111.0,10.0240655]
[1732000822933,1.06873179,3111.1,3111.0,13.2384655]
[1732000823177,1.06873179,3111.1,3111.0,13.5584655]
[1732000823344,1.06873179,3111.1,3111.0,15.73576905]
[1732000823548,1.06873179,3111.1,3111.0,12.4107655]
[1732000824183,1.06873179,3111.1,3111.0,9.1963655]
[1732000824184,4.28302179,3111.1,3111.0,9.1963655]
[1732000824352,4.98490262,3111.1,3111.0,8.39283888]
[1732000825088,1.37571447,3111.1,3111.0,8.39283888]
[1732000825250,1.77328906,3111.1,3111.0,8.39283888]
[1732000825456,1.07140823,3111.1,3111.0,8.39283888]
[1732000825866,1.07140823,3111.1,3111.0,11.92723888]
[1732000828276,0.67505312,3111.1,3111.0,11.92723888]
[1732000828590,1.38842349,3111.1,3111.0,13.7815546]
[1732000829104,1.38842349,3111.1,3111.0,16.7915546]
[1732000829399,4.12617316,3111.1,3111.0,8.39283888]
[1732000829600,4.12617316,3111.1,3111.0,7.38836769]
[1732000830684,0.91188316,3111.1,3111.0,7.38836769]
[1732000831821,0.53308582,3111.1,3111.0,7.38836769]
[1732000832019,0.91216907,3111.1,3111.0,7.38836769]
[1732000832331,1.52817464,3111.1,3111.0,7.38836769]
[1732000832712,0.91216436,3111.1,3111.0,7.38836769]
[1732000834328,0.91216436,3111.1,3111.0,10.60276769]
[1732000834624,0.91216436,3111.1,3111.0,13.54549446]
[1732000834826,0.61600557,3111.1,3111.0,16.86549446]
[1732000835130,0.23692522,3111.1,3111.0,16.88549446]
[1732000835426,0.23692522,3111.1,3111.0,16.56549446]
[1732000835593,0.31619563,3111.7,3111.6,3.21378]
[1732000835792,0.99233596,3111.7,3111.6,3.21378]
[1732000835982,0.67614033,3111.7,3111.6,3.856548]
[1732000836414,0.37958757,3111.7,3111.6,6.856548]
[1732000836635,0.37958757,3111.7,3111.6,7.646248]
[1732000836928,0.31619563,3112.2,3111.6,6.856548]
[1732000837139,0.31641706,3112.7,3112.3,3.22305]
[1732000837422,0.2369,3113.9,3111.9,3.21345]
[1732000837423,0.31641706,3113.3,3113.0,3.21233]
[1732000837727,0.31641706,3113.3,3113.2,3.21212]
[1732000838032,0.29646049,3113.3,3113.1,3.21223]
[1732000838273,0.31641706,3113.7,3113.4,3.21187]
[1732000838389,0.29601962,3113.6,3113.5,3.21179]
[1732000838582,0.31641706,3113.9,3113.5,3.21179]
[1732000838831,0.29600709,3113.8,3113.5,3.21181]
[1732000839009,0.29600709,3113.7,3113.5,3.21181]
[1732000839335,3.44795,3114.3,3113.5,3.21181]
[1732000839336,0.29600709,3113.6,3113.5,3.21181]
[1732000839629,0.31641706,3114.2,3113.4,4.02881]
[1732000839829,0.61208499,3114.1,3113.7,3.21159]
[1732000840131,0.29566793,3114.0,3113.9,3.2114]
[1732000840623,0.2369,3114.7,3113.9,3.2114]
[1732000840823,0.29527416,3114.6,3113.9,3.2114]
[1732000841013,0.29527416,3114.5,3113.4,4.02873]
[1732000841199,0.2369,3114.7,3113.4,4.02873]
[1732000841396,3.21102,3114.3,3113.4,4.02873]
[1732000841612,0.29526706,3114.2,3113.4,4.02873]
[1732000841826,0.29526706,3114.1,3113.4,4.02873]
[1732000842027,0.29526706,3114.2,3113.6,3.2117]
[1732000842331,0.29526706,3114.1,3113.6,3.2117]
[1732000842847,3.21068,3114.6,3113.4,0.8169]
[1732000842979,0.29476425,3114.5,3113.6,3.21171]
[1732000843186,0.29476425,3114.5,3113.4,0.8169]
[1732000843187,0.29476425,3114.4,3114.0,3.21122]
[1732000843450,3.21045,3114.9,3114.2,0.76]
[1732000843691,8.77,3115.4,3114.5,3.21076]
[1732000843692,0.29460437,3114.8,3114.5,3.21076]
[1732000843862,0.29460437,3114.8,3114.3,3.21099]
[1732000843863,3.20998,3115.3,3114.6,3.21068]
[1732000844069,3.44655,3115.6,3114.7,3.21056]
[1732000844070,0.29469228,3115.2,3114.7,3.21056]
[1732000844383,0.29469228,3115.2,3114.4,3.21088]
[1732000844384,0.29469228,3115.1,3114.8,3.21045]
[1732000844565,3.20977,3115.5,3114.8,3.21045]
[1732000844767,0.2369,3115.6,3114.8,3.21045]
[1732000844768,0.2944256,3115.4,3114.8,3.21045]
[1732000845084,0.2369,3115.6,3114.9,3.21035]
[1732000845453,3.81860882,3116.1,3114.9,3.21035]
[1732000845454,3.44625,3115.9,3115.1,3.21014]
[1732000845654,3.44625,3115.9,3114.5,0.01]
[1732000845655,0.29412681,3115.8,3115.0,0.8093]
[1732000845860,0.29412681,3115.8,3115.1,3.21014]
[1732000846057,0.29412681,3115.8,3115.0,0.8093]
[1732000846058,0.29412681,3115.8,3115.2,3.21003]
[1732000846268,0.2369,3115.9,3115.0,4.01956]
[1732000846468,0.2369,3115.9,3115.4,3.20985]
[1732000846692,3.20906,3116.2,3115.5,3.20972]
[1732000846903,0.2369,3116.3,3115.0,0.8093]
[1732000847134,0.2369,3116.3,3115.7,3.20954]
[1732000847415,0.2369,3116.3,3115.8,3.20943]
[1732000847626,3.20873,3116.5,3115.8,3.20943]
[1732000847790,3.44544,3116.7,3115.6,3.20961]
[1732000847791,3.20884,3116.4,3115.6,3.20961]
[1732000847993,3.20876,3116.5,3115.3,3.20996]
[1732000848321,3.20891,3116.4,3115.6,3.20962]
[1732000848626,3.44543,3116.7,3115.1,3.21012]
[1732000848627,0.2369,3116.7,3115.1,3.21012]
[1732000848825,3.20945,3115.8,3115.0,4.01956]
[1732000848980,3.20945,3115.8,3114.5,0.01]
[1732000848981,0.2369,3115.6,3114.9,3.21037]
[1732000849332,0.2369,3115.6,3115.0,3.21024]
[1732000849827,3.20948,3115.8,3115.0,4.01377]
[1732000850424,3.44622,3116.0,3115.2,3.21003]
[1732000850579,3.44622,3116.0,3115.3,3.20992]
[1732000851121,3.20894,3116.3,3115.0,0.8036]
[1732000851324,0.23437203,3116.2,3115.5,3.2097]
[1732000851629,3.20894,3116.3,3115.5,3.2097]
[1732000851831,0.2369,3116.4,3115.7,3.20945]